[Event "44th Chess Olympiad Open 2022"]
[Site "Chennai"]
[Date "2022.07.30"]
[Round "2.45"]
[White "Bilguun, Sumiya"]
[Black "Mc Intosh, Isaiah"]
[Result "1/2-1/2"]
[WhiteElo "2463"]
[BlackElo "2215"]
[Annotator "TA"]
[PlyCount "97"]
[EventDate "2022.??.??"]
[TimeControl "60"]

{[%evp 11,97,15,13,5,31,45,37,42,39,4,46,45,41,38,42,-2,8,-14,-2,-29,-20,-25,
14,7,4,7,18,15,10,15,14,15,34,26,18,25,20,13,35,19,19,22,112,63,76,8,11,11,97,
0,0,0,0,-24,-17,-27,-14,-16,-33,-179,-185,-201,-138,-139,-113,-132,-126,-118,0,
0,0,0,0,-77,0,-45,0,0,0,0,0,-66,-66,-73,0,0,0,-93]} 1. e4 {[%emt 0:00:09]} e5 {
[%emt 0:00:06]} 2. Nf3 {[%emt 0:00:07]} Nc6 {[%emt 0:00:04]} 3. d4 {[%emt 0:00:
00]} exd4 {[%emt 0:00:07]} 4. Nxd4 {[%emt 0:00:06]} Bc5 {[%emt 0:00:09]} 5. Nb3
{[%emt 0:00:06]} Bb6 {[%emt 0:00:07]} 6. Nc3 {[%emt 0:00:07]} Nf6 {[%emt 0:00:
00]} 7. Qe2 {[%emt 0:02:03] C45: Scotch Game.} d6 {[%emt 0:07:58]} 8. Be3 {
[%emt 0:00:17]} Be6 {[%emt 0:00:40]} 9. O-O-O {[%emt 0:00:43] White is
slightly better.} Qe7 {[%emt 0:05:52]} 10. Kb1 {[%emt 0:05:18]} Bxe3 {[%emt 0:
00:00]} 11. Qxe3 {[%emt 0:00:13]} O-O {[%emt 0:00:09]} 12. f3 {[%emt 0:02:26] 
[#]} Rad8 $146 {[%emt 0:07:03]} ({Predecessor:} 12... Rfd8 13. g4 Bxb3 14. axb3
d5 15. g5 d4 16. gxf6 Qxf6 17. e5 dxc3 18. Re1 Qe7 19. Qxc3 {1-0 (63) Ye,L 
(1813)-Park,E (1599) Pocos de Caldas 2017}) 13. Nd4 {[%emt 0:12:28]} Nxd4 {
[%emt 0:02:26]} 14. Rxd4 {[%emt 0:03:05][%cal Yd1d4,Yd4e4,Ye4e3]} Rfe8 {
[%emt 0:03:31]} 15. Qc1 {[%emt 0:10:03]} c6 {[%emt 0:02:48]} 16. g4 {[%emt 0:
00:00][%cal Yg2g4,Yg4g5]} d5 {[%emt 0:09:02]} 17. g5 {[%emt 0:03:18]} Nd7 {
[%emt 0:00:08]} 18. exd5 {[%emt 0:07:33]} Nb6 {[%emt 0:00:07][%cal Rb6d5]} 19.
Re4 {[%emt 0:20:27]} Nxd5 {[%emt 0:04:47]} 20. Nxd5 {[%emt 0:00:04]} Rxd5 {
[%emt 0:00:08]} 21. h4 {[%emt 0:00:51]} Rdd8 {[%emt 0:12:57]} 22. Bd3 {[%emt 0:
00:00]} Qd7 {[%emt 0:01:44]} 23. Rhe1 {[%emt 0:02:52]} Bd5 {[%emt 0:03:40]} 24.
R4e3 {[%emt 0:06:43]} c5 {[%emt 0:02:05]} 25. b3 {[%emt 0:08:23]} g6 {[%emt 0:
00:00]} 26. h5 {[%emt 0:00:46]} Re6 {[%emt 0:01:06]} (26... gxh5 $11 27. Rh1
Bc6) 27. hxg6 {[%emt 0:02:33]} (27. h6 $1 $16 Qe7 28. Qb2 $1) 27... hxg6 $14 {
[%emt 0:00:13]} 28. Rh1 {[%emt 0:01:01]} (28. Rxe6 $1 $16 {aiming for Re7.}
Bxe6 29. Qf4) 28... Rxe3 $11 {[%emt 0:06:36]} 29. Qxe3 {[%emt 0:00:46]
Threatening mate with Qe5.} Qd6 {[%emt 0:00:42] Prevents Qe5.} (29... Re8 $11 {
keeps the balance.} 30. Qf2 (30. Qxc5 Bxf3 31. Rf1 Bg2 $11) 30... Bc6) 30. Qf2
{[%emt 0:01:14]} (30. Be2 $16) 30... b6 {[%emt 0:09:21]} ({But not} 30... Qf4
31. Qxc5 Bc6 32. Qa5 $16 (32. Qxa7 Qxg5 33. Qb6 Rd7 $16) (32. Qc3 Qd4 $14)) 31.
Qe3 {[%emt 0:00:25]} Bc6 {[%emt 0:01:15]} 32. Be4 {[%emt 0:00:31] Strongly
threatening Bxc6.} Qe5 {[%emt 0:00:30]} 33. Qe2 $1 {[%emt 0:00:29]} Bxe4 {
[%emt 0:01:02]} 34. fxe4 {[%emt 0:00:05] Endgame KQR-KQR} Rd4 {[%emt 0:00:51]}
35. Re1 {[%emt 0:00:48]} ({White should play} 35. Qa6 $15 Qxg5 36. Qxa7) 35...
Qxg5 $19 {[%emt 0:00:24]} 36. e5 {[%emt 0:00:31]} Qd2 {[%emt 0:00:00]} 37. Qf1
{[%emt 0:00:29] [#]} Rf4 $1 {[%emt 0:00:49]} 38. Qh1 {[%emt 0:00:00] Hoping
for Rd1.} Rf2 {[%emt 0:00:11]} 39. Qe4 {[%emt 0:00:10]} Kg7 {[%emt 0:00:34]} (
39... Qb4 $17 {And now ...Qxe4 would win.} 40. Qa8+ Kg7) 40. e6 $1 $11 {
[%emt 0:01:03]} fxe6 {[%emt 0:00:27]} 41. Qe5+ {[%emt 0:02:15]} Kf8 {[%emt 0:
03:40]} 42. Qe4 {[%emt 0:05:59] [#]} (42. Qb8+ $11 Ke7 43. Qc7+ Qd7 44. Qg3)
42... Kg7 {[%emt 0:00:48]} ({Black should try} 42... g5 $1 $17) 43. Rg1 {
[%emt 0:04:56]} Rf6 {[%emt 0:01:40]} 44. Qa8 {[%emt 0:02:26]} Qd7 {[%emt 0:01:
01]} 45. Rh1 $1 {[%emt 0:01:44] White wants to mate with Qh8+.} Rf8 {[%emt 0:
00:44] Inhibits Qh8+.} 46. Qg2 {[%emt 0:00:18]} (46. Qe4 $11) 46... Rf5 $1 $15
{[%emt 0:01:13]} 47. Qa8 {[%emt 0:03:48] Qh8+ would kill now.} Rf8 {[%emt 0:00:
27] Prevents Qh8+.} (47... Rh5 $5 {[%cal Rh5h1]} 48. Rf1 Qe7 $17) 48. Qe4 {
[%emt 0:01:58]} Rf5 {[%emt 0:02:06]} (48... Qd5 $5 49. Qh4 Qh5 $11) 49. Qa8 $1
{[%emt 0:01:19] Weighted Error Value: White=0.20 (precise) /Black=0.19 (very
precise)} 1/2-1/2

[Event "44th Chess Olympiad Open 2022"]
[Site "Chennai"]
[Date "2022.07.30"]
[Round "2.45"]
[White "Amartuvshin, Ganzorig"]
[Black "Harper, Ryan"]
[Result "1-0"]
[WhiteElo "2409"]
[BlackElo "2208"]
[Annotator "TA"]
[PlyCount "65"]
[EventDate "2022.??.??"]
[TimeControl "60"]

{[%evp 14,65,84,75,72,92,96,100,106,103,101,96,91,101,112,99,119,119,125,124,
90,118,201,182,272,275,343,361,449,451,423,393,560,536,713,452,628,611,587,520,
598,545,787,775,946,972,966,956,1280,1329,2043,1906,1924,1924]} 1. d4 {[%emt 0:
00:00]} Nf6 {[%emt 0:00:12]} 2. c4 {[%emt 0:00:06]} g6 {[%emt 0:00:06]} 3. Nc3
{[%emt 0:00:05]} Bg7 {[%emt 0:00:05]} 4. e4 {[%emt 0:00:06]} d6 {[%emt 0:00:05]
} 5. Be2 {[%emt 0:00:06]} O-O {[%emt 0:00:08]} 6. Nf3 {[%emt 0:00:06]} e5 {
[%emt 0:00:05]} 7. d5 {[%emt 0:00:17]} c5 {[%emt 0:04:25]} 8. Bg5 {[%emt 0:00:
00]} h6 {[%emt 0:02:20] E92: King's Indian: Classical: 6 Be2 e5:7 dxe5, 7 Be3
and Petrosian System without 7...Nbd7.} 9. Be3 {[%emt 0:00:15]} Ng4 {[%emt 0:
00:00]} 10. Bd2 {[%emt 0:00:13]} f5 {[%emt 0:01:00] White is better.} 11. h3 {
[%emt 0:00:37]} Nf6 {[%emt 0:18:12] [#]} 12. exf5 {[%emt 0:00:11]} gxf5 {
[%emt 0:22:07] [#]} 13. Qc1 $146 {[%emt 0:00:56] White is more active.} ({
Predecessor:} 13. g3 Nh7 14. Qc2 Na6 15. a3 Bd7 16. O-O-O Nb4 17. Qb3 a5 18.
axb4 axb4 19. Nb5 {0-1 (39) Santamaria Perez,T (2364)-Vohl,G (2388) ICCF email
2016}) 13... f4 {[%emt 0:01:54]} 14. g3 {[%emt 0:00:30]} e4 {[%emt 0:01:36]}
15. Nh4 {[%emt 0:00:12]} e3 {[%emt 0:00:53]} 16. fxe3 {[%emt 0:00:07]} fxg3 {
[%emt 0:00:50][%cal Yf6e4]} 17. Ng6 {[%emt 0:00:16]} Rf7 {[%emt 0:14:12] [#]} (
17... Re8 $16 {was necessary.}) 18. Qc2 $1 $18 {[%emt 0:00:10]} g2 {[%emt 0:00:
00]} (18... b5 {keeps fighting.}) 19. Rg1 {[%emt 0:00:10]} Bxh3 {[%emt 0:00:05]
} 20. O-O-O {[%emt 0:01:08][%cal Ya1d1,Yd1e1,Ye1g1]} Ng4 {[%emt 0:00:00]} 21.
Nf4 {[%emt 0:08:46]} Rxf4 {[%emt 0:00:08]} 22. exf4 {[%emt 0:00:05]} Qh4 {
[%emt 0:03:24]} (22... Nf2 $142 23. Qg6 Nxd1 24. Nxd1 Qe7) 23. Qg6 {[%emt 0:02:
37] Qe6+ is the strong threat. White is clearly winning.} Nf2 {[%emt 0:05:48]}
24. Rde1 {[%emt 0:04:40]} Na6 {[%emt 0:02:06][%cal Yb8a6,Ya6b4,Yb4d3]} 25. Rxg2
{[%emt 0:03:04]} Bxg2 {[%emt 0:00:24]} 26. Qxg2 {[%emt 0:00:05]} Nb4 {[%emt 0:
02:41] And now ...Nfd3+ would win.} 27. Rg1 {[%emt 0:00:35][%csl Gg1][%cal
Rg2g7]} Nbd3+ {[%emt 0:00:51]} 28. Kc2 {[%emt 0:00:00][%csl Gg1][%cal Rg2g7,
Yc1c2,Yc2b3,Yb3a3]} Nb4+ {[%emt 0:01:22]} 29. Kb3 {[%emt 0:00:41][%csl Gg1]
[%cal Rg2g7]} Qf6 {[%emt 0:01:03]} 30. Qxf2 {[%emt 0:00:12]} a5 {[%emt 0:00:51]
} 31. Na4 {[%emt 0:01:19] Strongly threatening Bc3.} Qf5 {[%emt 0:00:24]} 32.
Bc3 {[%emt 0:00:39]} Qc2+ {[%emt 0:00:00]} 33. Ka3 {[%emt 0:00:10] Weighted
Error Value: White=0.14 (very precise) /Black=0.63} 1-0

[Event "44th Chess Olympiad Open 2022"]
[Site "Chennai"]
[Date "2022.07.30"]
[Round "2.45"]
[White "Johnson, Joshua"]
[Black "Gundavaa, Bayarsaikhan"]
[Result "0-1"]
[WhiteElo "2178"]
[BlackElo "2503"]
[Annotator "ChessBase"]
[PlyCount "54"]
[EventDate "2022.??.??"]
[TimeControl "60"]

1. e4 {[%emt 0:00:03]} c6 {[%emt 0:00:18]} 2. d4 {[%emt 0:00:49]} d5 {[%emt 0:
00:00]} 3. e5 {[%emt 0:00:01]} c5 {[%emt 0:00:55]} 4. dxc5 {[%emt 0:00:06]} e6
{[%emt 0:00:06]} 5. a3 {[%emt 0:03:16]} Bxc5 {[%emt 0:00:13]} 6. b4 {[%emt 0:
00:00]} Be7 {[%emt 0:00:09]} 7. Nf3 {[%emt 0:11:17]} a5 {[%emt 0:03:21]} 8. b5
{[%emt 0:02:13]} Nd7 {[%emt 0:00:49]} 9. Bb2 {[%emt 0:08:18]} Nh6 {[%emt 0:00:
00]} 10. c4 {[%emt 0:08:09]} dxc4 {[%emt 0:28:34]} 11. Bxc4 {[%emt 0:06:30]} b6
{[%emt 0:01:53]} 12. Nbd2 {[%emt 0:10:09]} Bb7 {[%emt 0:00:17]} 13. Nd4 {
[%emt 0:05:27]} Qc7 {[%emt 0:15:10]} 14. Qh5 {[%emt 0:16:14]} O-O {[%emt 0:00:
00]} 15. O-O {[%emt 0:20:44]} Qxe5 {[%emt 0:05:15]} 16. Qh3 {[%emt 0:00:03]}
Bf6 {[%emt 0:02:28]} 17. Rae1 {[%emt 0:02:05]} Qf4 {[%emt 0:01:14]} 18. Nxe6 {
[%emt 0:02:14]} fxe6 {[%emt 0:04:13]} 19. Qxe6+ {[%emt 0:00:23]} Kh8 {[%emt 0:
00:00]} 20. Qxd7 {[%emt 0:00:03]} Bxb2 {[%emt 0:01:40]} 21. Qxb7 {[%emt 0:00:
00]} Qxd2 {[%emt 0:02:09]} 22. Re2 {[%emt 0:00:15]} Qd4 {[%emt 0:00:37]} 23.
Bb3 {[%emt 0:00:43]} Rab8 {[%emt 0:01:55]} 24. Qe7 {[%emt 0:00:22]} Nf5 {
[%emt 0:00:12]} 25. Qg5 {[%emt 0:00:06]} Bxa3 {[%emt 0:00:44]} 26. Bc2 {
[%emt 0:00:04]} Qf6 {[%emt 0:00:41]} 27. Qg4 {[%emt 0:00:15]} Nd4 {[%emt 0:00:
00]} 0-1

[Event "44th Chess Olympiad Open 2022"]
[Site "Chennai"]
[Date "2022.07.30"]
[Round "2.46"]
[White "Taher, Yoseph Theolifus"]
[Black "Croad, Nicolas"]
[Result "1-0"]
[WhiteElo "2463"]
[BlackElo "2289"]
[Annotator "ChessBase"]
[PlyCount "85"]
[EventDate "2022.??.??"]
[TimeControl "60"]

1. d4 {[%emt 0:00:06]} Nf6 {[%emt 0:00:06]} 2. c4 {[%emt 0:00:16]} e6 {[%emt 0:
00:00]} 3. Nc3 {[%emt 0:00:06]} Bb4 {[%emt 0:00:07]} 4. f3 {[%emt 0:00:08]} c5
{[%emt 0:00:40]} 5. d5 {[%emt 0:00:11]} b5 {[%emt 0:01:16]} 6. e4 {[%emt 0:00:
00]} bxc4 {[%emt 0:00:59]} 7. Bxc4 {[%emt 0:00:05]} Nxd5 {[%emt 0:00:41]} 8.
Bxd5 {[%emt 0:00:16]} exd5 {[%emt 0:00:05]} 9. Qxd5 {[%emt 0:00:05]} Nc6 {
[%emt 0:01:41]} 10. Nge2 {[%emt 0:00:07]} Ba6 {[%emt 0:05:25]} 11. Kf2 {
[%emt 0:00:06]} O-O {[%emt 0:03:59]} 12. Rd1 {[%emt 0:10:32]} Re8 {[%emt 0:00:
00]} 13. Kg1 {[%emt 0:10:16]} Ne5 {[%emt 0:04:57]} 14. Nf4 {[%emt 0:01:01]} Rb8
{[%emt 0:05:47]} 15. a3 {[%emt 0:07:28]} Ba5 {[%emt 0:02:40]} 16. Qd6 {[%emt 0:
00:00]} Rb6 {[%emt 0:08:21]} 17. Qxc5 {[%emt 0:04:29]} Rxb2 {[%emt 0:07:46]}
18. Ncd5 {[%emt 0:01:11]} Qg5 {[%emt 0:15:18]} 19. Kh1 {[%emt 0:04:50]} Bb6 {
[%emt 0:05:44]} 20. Nxb6 {[%emt 0:02:16]} axb6 {[%emt 0:00:32]} 21. Qc3 {
[%emt 0:01:04]} Rf2 {[%emt 0:02:20]} 22. Be3 {[%emt 0:02:08]} Rc8 {[%emt 0:00:
00]} 23. Qd4 {[%emt 0:06:06]} Nxf3 {[%emt 0:00:53]} 24. Qd6 {[%emt 0:03:59]}
Rfc2 {[%emt 0:09:46]} 25. gxf3 {[%emt 0:05:19]} Be2 {[%emt 0:00:38]} 26. Nxe2 {
[%emt 0:05:11]} Qxe3 {[%emt 0:00:31]} 27. Nd4 {[%emt 0:00:49]} Rd2 {[%emt 0:00:
00]} 28. Rxd2 {[%emt 0:00:18]} Qxd2 {[%emt 0:00:03]} 29. Nf5 {[%emt 0:00:25]}
Qc3 {[%emt 0:01:04]} 30. Ne7+ {[%emt 0:01:07]} Kh8 {[%emt 0:00:03]} 31. Nxc8 {
[%emt 0:00:03]} Qxf3+ {[%emt 0:00:54]} 32. Kg1 {[%emt 0:00:03]} Qe3+ {[%emt 0:
00:00]} 33. Kf1 {[%emt 0:00:15]} Qf3+ {[%emt 0:00:33]} 34. Ke1 {[%emt 0:00:35]}
Qe3+ {[%emt 0:00:04]} 35. Kd1 {[%emt 0:00:10]} Qb3+ {[%emt 0:00:54]} 36. Ke2 {
[%emt 0:00:36]} Qc2+ {[%emt 0:00:23]} 37. Kf3 {[%emt 0:00:10]} Qc3+ {[%emt 0:
00:00]} 38. Kf4 {[%emt 0:01:05]} h6 {[%emt 0:00:17]} 39. Ne7 {[%emt 0:02:23]}
g5+ {[%emt 0:01:31]} 40. Kg4 {[%emt 0:00:19]} h5+ {[%emt 0:00:38]} 41. Kxg5 {
[%emt 0:30:24]} Qe3+ {[%emt 0:30:26]} 42. Qf4 {[%emt 0:00:24]} f6+ {[%emt 0:00:
00]} 43. Kf5 {[%emt 0:00:08]} 1-0

[Event "44th Chess Olympiad Open 2022"]
[Site "Chennai"]
[Date "2022.07.30"]
[Round "2.46"]
[White "Kurniawan, Muhamad Agus"]
[Black "Duneas, John"]
[Result "1-0"]
[WhiteElo "2328"]
[BlackElo "2031"]
[Annotator "TA"]
[PlyCount "97"]
[EventDate "2022.??.??"]
[TimeControl "60"]

{[%evp 13,97,25,17,21,87,38,42,27,47,27,29,-7,52,53,56,46,52,43,85,71,75,64,79,
77,108,65,62,64,66,56,56,60,76,0,52,68,88,75,116,126,114,75,75,75,75,75,89,89,
89,89,89,89,89,89,89,89,89,89,711,702,685,683,2642,2014,2583,2333,1632,1809,
2756,2479,2464,2587,1460,2256,2300,2822,2412,2416,29982,29983,29983,29984,
29981,29982,29979,5060]} 1. e4 {[%emt 0:00:02]} e6 {[%emt 0:00:18]} 2. d4 {
[%emt 0:00:31]} d5 {[%emt 0:00:24]} 3. Nc3 {[%emt 0:00:04]} Nf6 {[%emt 0:00:39]
} 4. Bg5 {[%emt 0:00:06]} dxe4 {[%emt 0:01:24]} 5. Nxe4 {[%emt 0:00:07]} Be7 {
[%emt 0:01:09]} 6. Bxf6 {[%emt 0:00:02]} gxf6 {[%emt 0:01:12]} 7. Nf3 {[%emt 0:
00:00]} a6 {[%emt 0:01:17]} 8. Qe2 {[%emt 0:00:27] C13: French: Classical
System: 4 Bg5 Be7, Alekhine-Chatard Attack.} Qd5 {[%emt 0:20:02] [#]} (8... f5
$11 {keeps the balance.} 9. Nc3 b5) 9. a3 $146 {[%emt 0:04:17]} (9. c4 $1 $16 {
[%cal Rc4d5]} Qa5+ 10. Nc3) ({Predecessor:} 9. g3 b5 10. Bg2 Bb7 11. Ned2 Qh5
12. O-O-O Nc6 13. Nb3 O-O-O 14. Kb1 Kb8 15. Rhe1 Rhe8 {1-0 (49) Fleetwood,D 
(2534)-Lopepe,P (2506) France AJEC 2002}) 9... Qa5+ {[%emt 0:10:03]} 10. c3 {
[%emt 0:03:30] White is slightly better.} Nd7 {[%emt 0:11:10]} 11. b4 {[%emt 0:
00:00]} Qh5 {[%emt 0:06:25]} 12. Qc4 {[%emt 0:21:03]} Qd5 {[%emt 0:10:42]} (
12... Qg6 $11 13. Ned2 Bd6) 13. Qxd5 $14 {[%emt 0:10:37]} exd5 {[%emt 0:00:08]}
14. Ng3 {[%emt 0:00:01]} Nb6 {[%emt 0:04:07]} 15. Bd3 {[%emt 0:00:46]} O-O {
[%emt 0:06:02]} 16. Kd2 {[%emt 0:02:24]} Nc4+ {[%emt 0:01:32]} 17. Bxc4 {
[%emt 0:11:58]} dxc4 {[%emt 0:00:07]} 18. Rhe1 {[%emt 0:00:52]} Bd6 {[%emt 0:
00:00]} 19. Ne4 {[%emt 0:13:28]} Bf4+ {[%emt 0:01:32]} 20. Kc2 {[%emt 0:00:16]}
Kg7 {[%emt 0:01:42]} 21. g3 {[%emt 0:00:14]} Bh6 {[%emt 0:01:34]} 22. Nh4 {
[%emt 0:00:17]} Bg5 {[%emt 0:02:45]} 23. Nf3 {[%emt 0:11:13]} ({Much worse is} 
23. f4 Bxh4 24. gxh4 Re8 $11) 23... Bh6 $1 {[%emt 0:02:21]} ({Much less strong
is} 23... Bf5 24. Kb2 $14 (24. Nfxg5 fxg5 25. f3 Rae8 $11)) 24. a4 {[%emt 0:00:
00][%cal Ya3a4,Ya4a5]} Re8 {[%emt 0:01:49] [#]} 25. Nh4 {[%emt 0:00:00][%cal
Ye4f6] Prevents Bf5.} Bh3 {[%emt 0:03:54]} 26. f4 {[%emt 0:00:23]} b5 {[%emt 0:
01:35]} 27. a5 {[%emt 0:03:31]} Rad8 {[%emt 0:00:37]} 28. Nc5 {[%emt 0:03:01]
Pair of Knights!} Bc8 {[%emt 0:00:12]} 29. Kd2 {[%emt 0:00:50] White is more
active.} Kg8 {[%emt 0:00:34]} 30. Rxe8+ {[%emt 0:00:52]} Rxe8 {[%emt 0:00:02]}
31. Re1 {[%emt 0:00:01]} Rxe1 {[%emt 0:00:48]} 32. Kxe1 $16 {[%emt 0:00:01]
Endgame KBB-KNN} Bf8 {[%emt 0:01:09]} 33. Kd2 {[%emt 0:00:13][%cal Ye1d2,Yd2e3,
Ye3d4]} Be7 {[%emt 0:00:42]} 34. Ke3 {[%emt 0:00:05]} f5 {[%emt 0:01:09]} 35.
Nf3 {[%emt 0:00:01]} f6 $2 {[%emt 0:00:00] A mistake that costs the game.} (
35... Kf8 $16) 36. d5 $18 {[%emt 0:00:31]} Bxc5+ {[%emt 0:01:01]} 37. bxc5 {
[%emt 0:00:03][%cal Yb4c5,Yc5c6] Strongly threatening c6. KB-KN} Kf7 {[%emt 0:
00:20]} 38. c6 {[%emt 0:03:14]} Ke7 {[%emt 0:00:27]} 39. Kd4 {[%emt 0:00:01]}
Kd6 {[%emt 0:00:00]} 40. Ne1 {[%emt 0:00:01] Black must now prevent Nc2.} Ke7 {
[%emt 0:00:39]} 41. Kc5 {[%emt 0:30:02]} Kd8 {[%emt 0:30:32]} 42. Nc2 {[%emt 0:
00:14]} Ke7 {[%emt 0:00:31] Inhibits d6+.} 43. Nd4 {[%emt 0:00:02]} (43. h4
$142 h6 44. Nb4) 43... Kd8 {[%emt 0:00:40]} 44. d6 {[%emt 0:00:37]} cxd6+ {
[%emt 0:00:22]} 45. Kxd6 {[%emt 0:00:03] Nc2 is the strong threat.} h6 {
[%emt 0:00:32]} 46. Nc2 {[%emt 0:00:28] White mates.} h5 {[%emt 0:00:20]} 47.
Nb4 {[%emt 0:00:05]} Ke8 {[%emt 0:00:31]} 48. Kc7 {[%emt 0:00:02]} Be6 {
[%emt 0:00:25]} 49. Nxa6 {[%emt 0:00:03] Weighted Error Value: White=0.09 
(flawless) /Black=0.25 (precise)} (49. Kb6 $142 h4 50. Nxa6 Bc8 51. Nc7+ Ke7
52. a6 hxg3 53. hxg3 b4 54. a7) 1-0

[Event "44th Chess Olympiad Open 2022"]
[Site "Chennai"]
[Date "2022.07.30"]
[Round "2.46"]
[White "Gong, Daniel Hanwen"]
[Black "Priasmoro, Novendra"]
[Result "1/2-1/2"]
[WhiteElo "2296"]
[BlackElo "2494"]
[Annotator "ChessBase"]
[PlyCount "65"]
[EventDate "2022.??.??"]
[TimeControl "60"]

1. d4 {[%emt 0:00:06]} Nf6 {[%emt 0:00:10]} 2. Bf4 {[%emt 0:00:04]} g6 {
[%emt 0:00:06]} 3. Nc3 {[%emt 0:00:05]} d5 {[%emt 0:00:04]} 4. e3 {[%emt 0:00:
00]} Bg7 {[%emt 0:00:05]} 5. h4 {[%emt 0:00:09]} c5 {[%emt 0:14:18]} 6. Nb5 {
[%emt 0:00:58]} Na6 {[%emt 0:00:10]} 7. c3 {[%emt 0:00:04]} O-O {[%emt 0:01:46]
} 8. Be2 {[%emt 0:00:49]} Qb6 {[%emt 0:01:59]} 9. a4 {[%emt 0:00:05]} c4 {
[%emt 0:03:48]} 10. Nf3 {[%emt 0:23:32]} Bd7 {[%emt 0:02:11]} 11. b3 {[%emt 0:
00:00]} Bxb5 {[%emt 0:08:34]} 12. axb5 {[%emt 0:00:06]} Qxb5 {[%emt 0:00:05]}
13. bxc4 {[%emt 0:02:55]} dxc4 {[%emt 0:00:04]} 14. Qa4 {[%emt 0:00:50]} Qxa4 {
[%emt 0:01:16]} 15. Rxa4 {[%emt 0:00:06]} Nd5 {[%emt 0:00:07]} 16. Kd2 {
[%emt 0:17:47]} Rfd8 {[%emt 0:13:42]} 17. Kc2 {[%emt 0:07:12]} Nxf4 {[%emt 0:
00:00]} 18. exf4 {[%emt 0:00:05]} Nc7 {[%emt 0:00:11]} 19. Rha1 {[%emt 0:17:08]
} a6 {[%emt 0:02:09]} 20. Rxc4 {[%emt 0:00:21]} Nd5 {[%emt 0:00:06]} 21. g3 {
[%emt 0:00:53]} e6 {[%emt 0:03:17]} 22. Ne5 {[%emt 0:02:28]} b5 {[%emt 0:09:27]
} 23. Rc6 {[%emt 0:02:41]} b4 {[%emt 0:00:21]} 24. Bf3 {[%emt 0:06:28]} Nxc3 {
[%emt 0:07:40]} 25. Rxc3 {[%emt 0:00:57]} bxc3 {[%emt 0:00:06]} 26. Bxa8 {
[%emt 0:00:02]} Rxa8 {[%emt 0:00:05]} 27. Kxc3 {[%emt 0:00:26]} a5 {[%emt 0:00:
00]} 28. Ra4 {[%emt 0:01:20]} Bf8 {[%emt 0:19:46]} 29. Nc6 {[%emt 0:03:19]} Rc8
{[%emt 0:00:15]} 30. Rc4 {[%emt 0:00:04]} Ra8 {[%emt 0:00:27]} 31. Ra4 {
[%emt 0:07:04]} Rc8 {[%emt 0:00:52]} 32. Rc4 {[%emt 0:00:02]} Ra8 {[%emt 0:00:
00]} 33. Ra4 {[%emt 0:03:28]} 1/2-1/2

[Event "44th Chess Olympiad Open 2022"]
[Site "Chennai"]
[Date "2022.07.30"]
[Round "2.46"]
[White "Xie, Felix"]
[Black "Ervan, Mohamad"]
[Result "1/2-1/2"]
[WhiteElo "2224"]
[BlackElo "2402"]
[Annotator "TA"]
[PlyCount "61"]
[EventDate "2022.??.??"]
[TimeControl "60"]

{[%evp 19,61,21,22,33,43,39,47,33,47,15,0,0,11,10,9,0,0,0,0,0,0,0,0,0,0,0,0,0,
0,0,0,0,0,0,0,0,0,0,0,0,0,0,0,0]} 1. d4 {[%emt 0:00:06]} Nf6 {[%emt 0:00:11]}
2. c4 {[%emt 0:00:09]} e6 {[%emt 0:00:10]} 3. g3 {[%emt 0:00:10]} d5 {[%emt 0:
00:00]} 4. Nf3 {[%emt 0:00:17]} Be7 {[%emt 0:00:12]} 5. Bg2 {[%emt 0:00:08]}
O-O {[%emt 0:00:06]} 6. O-O {[%emt 0:00:11]} dxc4 {[%emt 0:00:08]} 7. Ne5 {
[%emt 0:00:21]} Nc6 {[%emt 0:02:39]} 8. Bxc6 {[%emt 0:00:08]} bxc6 {[%emt 0:00:
00]} 9. Nxc6 {[%emt 0:00:28]} Qe8 {[%emt 0:00:57]} 10. Nxe7+ {[%emt 0:00:16]}
Qxe7 {[%emt 0:00:04]} 11. Qc2 {[%emt 0:00:10] E05: Open Catalan: 5 Nf3 Be7.} e5
{[%emt 0:01:07]} 12. dxe5 {[%emt 0:03:57]} Qxe5 {[%emt 0:00:09]} 13. Bf4 {
[%emt 0:01:06] White is slightly better.} Qh5 {[%emt 0:02:00]} 14. f3 {[%emt 0:
00:00]} Qc5+ {[%emt 0:13:08] The position is equal.} 15. Kg2 {[%emt 0:02:30]}
Nd5 {[%emt 0:05:43]} ({Don't play} 15... Qh5 16. g4 Nxg4 17. fxg4 Bxg4 18. Re1
$16) 16. Bd2 {[%emt 0:03:47] [#]} Rb8 $146 {[%emt 0:07:48] Black is not
holding back} ({Predecessor:} 16... Re8 17. e4 Nb6 18. Nc3 Be6 19. Rfe1 Rad8
20. Be3 Qa5 21. Rad1 Rd7 22. Bxb6 axb6 23. Rxd7 Bxd7 {1-0 (57) Brunner,J (2046)
-Mueller,M (1837) Willingen 2019}) 17. e4 {[%emt 0:06:01]} c3 {[%emt 0:00:00]}
18. b3 {[%emt 0:20:00]} ({Don't blunder} 18. exd5 $2 cxb2 19. Nc3 bxa1=N 20.
Rxa1 Bb7 $19) 18... Nb4 {[%emt 0:16:28]} 19. Qxc3 {[%emt 0:00:20]} Qh5 {
[%emt 0:00:08]} 20. g4 {[%emt 0:11:27]} Bxg4 {[%emt 0:02:20]} 21. fxg4 {
[%emt 0:00:20]} Qxg4+ {[%emt 0:00:03]} 22. Qg3 {[%emt 0:00:39]} Qxe4+ {[%emt 0:
00:00]} 23. Rf3 {[%emt 0:01:01] [#] Hoping for Na3.} Rb6 {[%emt 0:03:15]
Strongly threatening ...Rg6.} 24. Bxb4 {[%emt 0:08:13]} Rg6 {[%emt 0:00:54]}
25. Bxf8 {[%emt 0:00:17][%cal Yf8a3] And now Ba3! would win.} Qe2+ {[%emt 0:00:
00]} 26. Rf2 {[%emt 0:01:56]} Qe4+ {[%emt 0:00:48]} 27. Rf3 {[%emt 0:00:18]
[%cal Yf8a3] [#] Black must now prevent Ba3!} Qe2+ {[%emt 0:03:48]} 28. Rf2 {
[%emt 0:01:07]} Qe4+ {[%emt 0:01:28]} 29. Rf3 {[%emt 0:00:43][%cal Yf8a3]
Threatens to win with Ba3!} Qe2+ {[%emt 0:00:24]} 30. Rf2 {[%emt 0:00:06]} Qe4+
{[%emt 0:00:04]} 31. Rf3 {[%emt 0:00:14] Weighted Error Value: White=0.03 
(flawless) /Black=0.02 (flawless)} 1/2-1/2